bitfinex/quotes_BTCUSD_20241001
["timestamp","ask_amount","ask_price","bid_price","bid_amount"]
[1727773469748,0.000824,64126.0,64125.0,0.76153575]
[1727773470659,0.001824,64126.0,64125.0,0.77553575]
[1727773471101,0.002824,64126.0,64125.0,0.78953575]
[1727773471540,0.002824,64126.0,64125.0,1.08275547]
[1727773472160,0.002824,64126.0,64125.0,1.01310795]
[1727773472372,0.002824,64126.0,64125.0,1.10603491]
[1727773473444,0.002824,64126.0,64125.0,1.01310795]
[1727773474542,0.002824,64126.0,64125.0,1.12926665]
[1727773475452,0.002824,64126.0,64125.0,1.01310795]
[1727773475892,0.002824,64126.0,64125.0,0.83352252]
[1727773476098,0.002824,64126.0,64125.0,0.9264469]
[1727773476306,0.002824,64126.0,64125.0,0.83352252]
[1727773476572,0.002824,64126.0,64125.0,0.9264469]
[1727773477497,0.002824,64126.0,64125.0,0.94968306]
[1727773477713,0.002824,64126.0,64125.0,0.83352252]
[1727773478168,0.000824,64127.0,64126.0,0.238642]
[1727773478397,0.1670467,64138.0,64133.0,0.311848]
[1727773478622,0.1670467,64138.0,64135.0,0.311841]
[1727773478806,0.1175,64138.0,64137.0,0.155916]
[1727773479539,0.1175,64138.0,64137.0,0.52218805]
[1727773480443,0.1175,64138.0,64137.0,0.54542899]
[1727773481505,0.155895,64146.0,64139.0,0.155911]
[1727773481730,0.22912843,64148.0,64142.0,0.155901]
[1727773481731,0.049543,64148.0,64142.0,0.155901]
[1727773481957,0.205432,64148.0,64141.0,0.155904]
[1727773482178,0.155886,64150.0,64142.0,0.155902]
[1727773482364,0.311765,64151.0,64142.0,0.20242579]
[1727773482604,0.15589,64148.0,64142.0,0.04652379]
[1727773482812,0.002,64146.0,64141.0,0.20242979]
[1727773483043,0.002,64146.0,64142.0,0.001]
[1727773483486,0.1559,64144.0,64142.0,0.04652379]
[1727773483939,0.232601,64143.0,64142.0,0.04652379]
[1727773484231,0.226601,64143.0,64142.0,0.001]
[1727773484446,0.155898,64145.0,64142.0,0.002]
[1727773484678,0.155901,64143.0,64142.0,0.04852379]
[1727773484912,0.112,64144.0,64142.0,0.04752379]
[1727773485148,0.2679,64144.0,64142.0,0.05352379]
[1727773485366,0.112,64144.0,64142.0,0.05252379]
[1727773485574,0.271301,64143.0,64142.0,0.05252379]
[1727773485795,0.271301,64143.0,64142.0,0.05052379]
[1727773486005,0.1154,64143.0,64142.0,0.05052379]
[1727773486401,0.1154,64143.0,64141.0,0.04652379]
[1727773486816,0.1154,64143.0,64142.0,0.005]
[1727773487642,0.1154,64143.0,64142.0,0.01]
[1727773487997,0.1154,64143.0,64142.0,0.005]
[1727773488415,0.271301,64143.0,64142.0,0.006]
[1727773489441,0.271301,64143.0,64142.0,0.011]
[1727773489672,0.38916677,64143.0,64142.0,0.011]
[1727773489902,0.37916677,64143.0,64142.0,0.011]
[1727773491637,0.84687677,64143.0,64142.0,0.011]
[1727773492513,0.69097577,64143.0,64142.0,0.011]
[1727773492756,0.84687677,64143.0,64142.0,0.011]
[1727773494286,0.729011,64143.0,64142.0,0.011]
[1727773494912,0.57311,64143.0,64142.0,0.011]
[1727773498388,0.729011,64143.0,64142.0,0.011]
[1727773499758,0.729011,64143.0,64142.0,0.012648]
[1727773500176,0.573934,64143.0,64142.0,0.012648]
[1727773500382,0.729835,64143.0,64142.0,0.012648]
[1727773500587,0.573934,64143.0,64142.0,0.012648]
[1727773501963,0.468534,64143.0,64142.0,0.012648]
[1727773502424,0.468534,64143.0,64142.0,0.05927522]
[1727773502828,0.468534,64143.0,64142.0,0.29605315]
[1727773503032,0.468534,64143.0,64142.0,0.168552]
[1727773504494,0.468534,64143.0,64142.0,0.012648]
[1727773505337,0.468534,64143.0,64142.0,0.08258884]
[1727773506291,0.584734,64143.0,64142.0,0.37808949]
[1727773507190,0.584734,64143.0,64142.0,0.37815471]
[1727773508048,0.584734,64143.0,64142.0,0.30221387]
[1727773508263,0.584734,64143.0,64142.0,0.45811787]
[1727773508514,0.584734,64143.0,64142.0,0.29921387]
[1727773508771,0.584734,64143.0,64142.0,0.41578194]
[1727773509001,0.584734,64143.0,64142.0,0.41678194]
[1727773509237,0.584734,64143.0,64142.0,0.57268594]
[1727773509471,0.584734,64143.0,64142.0,0.45611787]
[1727773509716,0.584734,64143.0,64142.0,0.157552]
[1727773509954,0.584734,64143.0,64142.0,0.45834004]
[1727773510192,0.584734,64143.0,64142.0,0.5770722]
[1727773510662,0.584734,64143.0,64142.0,0.45834004]
[1727773510938,0.584734,64143.0,64142.0,0.46334004]
[1727773512633,0.584734,64143.0,64142.0,0.30743604]
[1727773516293,0.584734,64143.0,64142.0,0.46334004]
[1727773521449,0.584734,64143.0,64142.0,0.30743604]
[1727773522626,0.740635,64143.0,64142.0,0.30743604]
[1727773522834,0.740635,64143.0,64142.0,0.05739191]
[1727773523059,0.85850077,64143.0,64142.0,0.010648]
[1727773523253,0.93370077,64143.0,64142.0,0.010648]
[1727773523857,0.93370077,64143.0,64142.0,0.005648]
[1727773524071,0.93370077,64143.0,64142.0,0.05239191]
[1727773524278,0.584734,64143.0,64142.0,0.005648]
[1727773524482,0.584734,64143.0,64142.0,0.001648]
[1727773524732,0.584734,64143.0,64142.0,0.30013343]
[1727773524927,0.587734,64143.0,64142.0,0.30013343]
[1727773525170,0.589734,64143.0,64142.0,0.30013343]
[1727773525380,0.589734,64143.0,64142.0,0.37423745]
[1727773525593,0.471534,64143.0,64142.0,0.55351058]
[1727773525800,0.471534,64143.0,64142.0,0.30413343]
[1727773526018,0.471534,64143.0,64142.0,0.46503743]
[1727773526655,0.471534,64143.0,64142.0,0.30913343]
[1727773526885,0.471534,64143.0,64142.0,0.010648]
[1727773527097,0.471534,64143.0,64142.0,0.30856746]
[1727773528134,0.627435,64143.0,64142.0,0.42538895]
[1727773528349,0.471534,64143.0,64142.0,0.30856746]
[1727773528589,0.627435,64143.0,64142.0,0.30856746]
[1727773528807,0.627435,64143.0,64142.0,0.42538895]
[1727773529038,0.627435,64143.0,64142.0,0.30856746]
[1727773529454,0.627435,64143.0,64142.0,0.010648]
[1727773529671,0.627435,64143.0,64142.0,0.3089287]
[1727773529901,0.471534,64143.0,64142.0,0.3089287]
[1727773530318,0.627435,64143.0,64142.0,0.3089287]
[1727773532123,0.471534,64143.0,64142.0,0.3089287]
[1727773533795,0.471534,64143.0,64142.0,0.5435327]
[1727773535061,0.471534,64143.0,64142.0,1.10043052]
[1727773535289,0.471534,64143.0,64142.0,0.96023664]
[1727773535513,0.471534,64143.0,64142.0,0.96011472]
[1727773535725,0.471534,64143.0,64142.0,0.5435327]
[1727773537530,0.471534,64143.0,64142.0,0.96023263]
[1727773537904,0.471534,64143.0,64142.0,1.23330449]
[1727773538555,0.471534,64143.0,64142.0,1.44030951]
[1727773538771,0.471534,64143.0,64142.0,1.43530951]
[1727773539002,0.472534,64143.0,64142.0,1.44230951]
[1727773539240,0.472534,64143.0,64142.0,1.23127325]
[1727773539241,0.469534,64143.0,64142.0,1.23127325]
[1727773539446,0.468534,64143.0,64142.0,1.236053]
[1727773539880,0.469534,64143.0,64142.0,1.236053]
[1727773540133,0.469534,64143.0,64142.0,1.250053]
[1727773541344,0.469534,64143.0,64142.0,1.36791877]
[1727773541837,0.469534,64143.0,64142.0,1.250053]
[1727773542069,0.469534,64143.0,64142.0,1.25003991]
[1727773542525,0.469534,64143.0,64142.0,1.23347018]
[1727773543074,0.469534,64143.0,64142.0,1.36788973]
[1727773544285,0.469534,64143.0,64142.0,1.35133595]
[1727773544508,0.469534,64143.0,64142.0,1.3507382]
[1727773545459,0.469534,64143.0,64142.0,1.36729745]
[1727773546326,0.469534,64143.0,64142.0,1.3507382]
[1727773548673,0.469534,64143.0,64142.0,1.23287243]
[1727773548895,0.469534,64143.0,64142.0,0.81741757]
[1727773551604,0.469534,64143.0,64142.0,1.23322306]
[1727773551832,0.469534,64143.0,64142.0,1.37315833]
[1727773552053,0.469534,64143.0,64142.0,1.23322306]
[1727773552292,0.469534,64143.0,64142.0,1.24981027]
[1727773552498,0.469534,64143.0,64142.0,1.24979399]
[1727773552788,0.469534,64143.0,64142.0,1.28279399]
[1727773552984,0.469534,64143.0,64142.0,1.48939996]
[1727773553191,0.469534,64143.0,64142.0,1.28779399]
[1727773553407,0.469534,64143.0,64142.0,1.28979399]
[1727773554242,0.469534,64143.0,64142.0,1.28802096]
[1727773554504,0.469534,64143.0,64142.0,1.49452325]
[1727773554717,0.469534,64143.0,64142.0,1.27145003]
[1727773554900,0.469534,64143.0,64142.0,1.49450576]
[1727773557548,0.34249844,64143.0,64142.0,1.01321803]
[1727773557784,0.34249844,64143.0,64142.0,0.87340495]
[1727773557998,0.34249844,64143.0,64142.0,1.27145003]
[1727773558250,0.34249844,64143.0,64142.0,0.87340158]
[1727773558667,0.34249844,64143.0,64142.0,0.90469158]
[1727773559103,0.34249844,64143.0,64142.0,0.91764089]
[1727773559317,0.34249844,64143.0,64142.0,0.90364089]
[1727773559530,0.34249844,64143.0,64142.0,1.43183936]
[1727773559747,0.34249844,64143.0,64142.0,1.44583936]
[1727773559947,0.34149844,64143.0,64142.0,1.41783936]
[1727773560384,0.34149844,64143.0,64142.0,1.43183936]
[1727773560607,0.34149844,64143.0,64142.0,1.44583936]
[1727773560821,0.06496401,64143.0,64142.0,1.43183936]
[1727773561039,0.000824,64153.0,64152.0,0.160879]
[1727773561250,0.000824,64153.0,64152.0,0.85434433]
[1727773561462,0.000824,64153.0,64152.0,0.87086275]
[1727773562757,0.000824,64153.0,64152.0,0.88486275]
[1727773563009,0.000824,64153.0,64152.0,0.88686275]
[1727773563715,0.000824,64153.0,64152.0,0.87034433]
[1727773563946,0.000824,64153.0,64152.0,0.90080126]
[1727773564546,0.000824,64153.0,64152.0,0.89880126]
[1727773566884,0.000824,64153.0,64152.0,0.89878539]
[1727773567336,0.000824,64153.0,64152.0,0.89878694]
[1727773567550,0.000824,64153.0,64152.0,0.89737666]
[1727773570228,0.000824,64153.0,64152.0,0.89736402]
[1727773570710,0.000824,64153.0,64152.0,0.88093405]
[1727773570931,0.000824,64153.0,64152.0,0.63506828]
[1727773571358,0.000824,64153.0,64152.0,0.72809523]
[1727773571804,0.000824,64153.0,64152.0,0.57163743]
[1727773572020,0.116224,64153.0,64152.0,0.57163743]
[1727773572220,0.195624,64153.0,64152.0,0.47861048]
[1727773572427,0.195624,64153.0,64152.0,0.54930135]
[1727773573277,0.195624,64153.0,64152.0,0.64930135]
[1727773574147,0.116224,64153.0,64152.0,0.57952217]
[1727773575180,0.116224,64153.0,64152.0,0.67256108]
[1727773575797,0.000824,64153.0,64152.0,0.82901888]
[1727773575960,0.0004,64159.0,64158.0,0.155865]
[1727773578001,0.0004,64159.0,64158.0,0.165865]
[1727773578202,0.0004,64159.0,64158.0,0.2214114]
[1727773578408,0.0004,64159.0,64158.0,0.0655464]
[1727773579083,0.32046577,64159.0,64158.0,0.0655464]
[1727773579310,0.47632777,64159.0,64158.0,0.019]
[1727773581425,0.47632777,64159.0,64158.0,0.01]
[1727773581631,0.11826577,64159.0,64150.0,0.23677793]
[1727773581832,0.31276577,64151.0,64150.0,0.23677793]
[1727773582291,0.35024877,64151.0,64148.0,0.0465464]
[1727773582501,0.115,64150.0,64148.0,0.0465464]
[1727773582730,0.270885,64150.0,64148.0,0.0465464]
[1727773583399,0.115,64150.0,64148.0,0.0465464]
[1727773583605,0.155887,64149.0,64148.0,0.0465464]
[1727773584241,0.115,64150.0,64148.0,0.0465464]
[1727773584675,0.115,64150.0,64148.0,0.0575464]
[1727773585117,0.270886,64150.0,64148.0,0.0585464]
[1727773585346,0.270886,64150.0,64148.0,0.0655464]
[1727773585553,0.270886,64150.0,64148.0,0.0535464]
[1727773585801,0.270886,64150.0,64148.0,0.0595464]
[1727773586216,0.115,64150.0,64148.0,0.0595464]
[1727773587189,0.115,64150.0,64148.0,0.013]
[1727773587410,0.270886,64150.0,64148.0,0.05959372]
[1727773588288,0.115,64150.0,64148.0,0.05959372]
[1727773588823,0.270884,64150.0,64148.0,0.013]
[1727773589849,0.46766,64149.0,64148.0,0.013]
[1727773590738,0.46766,64149.0,64148.0,0.006]
[1727773590950,0.46766,64149.0,64146.0,0.04659372]
[1727773591165,0.46766,64149.0,64145.0,0.06989058]
[1727773591166,0.46766,64149.0,64148.0,0.008]
[1727773591355,0.46766,64149.0,64148.0,0.015]
[1727773591782,0.46766,64149.0,64148.0,0.007]
[1727773592599,0.46766,64149.0,64148.0,0.05357849]
[1727773592814,0.46766,64149.0,64148.0,0.2385578]
[1727773593036,0.46766,64149.0,64148.0,0.6910957]
[1727773593244,0.46766,64149.0,64148.0,1.20686213]
[1727773593657,0.46766,64149.0,64148.0,1.22332364]
[1727773594076,0.46766,64149.0,64148.0,1.23132364]
[1727773594288,0.46766,64149.0,64148.0,1.21486213]
[1727773594565,0.46766,64149.0,64148.0,1.19986213]
[1727773594745,0.46766,64149.0,64148.0,1.21629061]
[1727773594976,0.46766,64149.0,64148.0,1.24429061]
[1727773595185,0.46766,64149.0,64148.0,1.24593861]
[1727773595611,0.46766,64149.0,64148.0,1.22951013]
[1727773596025,0.46766,64149.0,64148.0,1.24593861]
[1727773596879,0.46766,64149.0,64148.0,1.42549693]
[1727773597327,0.46766,64149.0,64148.0,1.54875389]
[1727773600065,0.46766,64149.0,64148.0,1.43049118]
[1727773601473,0.46766,64149.0,64148.0,1.45848241]
[1727773601741,0.46766,64149.0,64148.0,1.66969681]
[1727773601982,0.46766,64149.0,64148.0,1.59518117]
[1727773602195,0.46766,64149.0,64148.0,1.57745301]
[1727773602428,0.46766,64149.0,64148.0,1.59035177]
[1727773602668,0.46766,64149.0,64148.0,1.57745301]
[1727773602891,0.46766,64149.0,64148.0,1.59035177]
[1727773603367,0.46766,64149.0,64148.0,1.57945301]
[1727773603858,0.46766,64149.0,64148.0,1.59035177]
[1727773604109,0.46766,64149.0,64148.0,1.57945301]
[1727773604833,0.46766,64149.0,64148.0,1.57747429]
[1727773605069,0.46766,64149.0,64148.0,1.47510954]
[1727773605606,0.46766,64149.0,64148.0,1.4486743]
[1727773605873,0.46766,64149.0,64148.0,1.4256743]
[1727773608292,0.46766,64149.0,64148.0,1.40923905]
[1727773608548,0.46766,64149.0,64148.0,1.4256743]
[1727773608780,0.46766,64149.0,64148.0,1.44213243]
[1727773609264,0.46766,64149.0,64148.0,1.42569718]
[1727773609511,0.46766,64149.0,64148.0,1.40923905]
[1727773609754,0.46766,64149.0,64148.0,1.42569718]
[1727773609992,0.46766,64149.0,64148.0,1.22968073]
[1727773610240,0.46766,64149.0,64148.0,1.42569718]
[1727773611435,0.46766,64149.0,64148.0,1.42568749]
[1727773611918,0.46766,64149.0,64148.0,1.65491608]
[1727773612124,0.46766,64149.0,64148.0,1.65491727]
[1727773612330,0.46766,64149.0,64148.0,1.44868749]
[1727773612604,0.46766,64149.0,64148.0,1.51214349]
[1727773613032,0.46766,64149.0,64148.0,1.51014349]
[1727773613251,0.46766,64149.0,64148.0,1.51004349]
[1727773613452,0.46766,64149.0,64148.0,1.50924349]
[1727773613697,0.46766,64149.0,64148.0,1.50914349]
[1727773613902,0.46766,64149.0,64148.0,1.51114349]
[1727773614121,0.46766,64149.0,64148.0,1.51104349]
[1727773614331,0.46766,64149.0,64148.0,1.51044349]
[1727773614548,0.46766,64149.0,64148.0,1.49189505]
[1727773614766,0.46766,64149.0,64148.0,1.50832644]
[1727773614993,0.46766,64149.0,64148.0,1.50812644]
[1727773615225,0.46766,64149.0,64148.0,1.71366805]
[1727773615474,0.46766,64149.0,64148.0,1.71356805]
[1727773615684,0.46766,64149.0,64148.0,1.71357855]
[1727773615896,0.46766,64149.0,64148.0,1.71347855]
[1727773616106,0.46766,64149.0,64148.0,1.71287855]
[1727773616367,0.46766,64149.0,64148.0,1.50662644]
[1727773616907,0.46766,64149.0,64148.0,1.50632644]
[1727773617177,0.46766,64149.0,64148.0,1.62871977]
[1727773617427,0.46766,64149.0,64148.0,1.64661939]
[1727773617695,0.46766,64149.0,64148.0,1.64641939]
[1727773617902,0.46766,64149.0,64148.0,1.634988]
[1727773618173,0.46766,64149.0,64148.0,1.65141802]
[1727773618365,0.46766,64149.0,64148.0,1.52961802]
[1727773618610,0.46766,64149.0,64148.0,1.5167184]
[1727773618819,0.46766,64149.0,64148.0,1.52961199]
[1727773619254,0.46766,64149.0,64148.0,1.53161199]
[1727773619687,0.46766,64149.0,64148.0,1.24005367]
[1727773619903,0.58936,64149.0,64148.0,0.97760228]
[1727773620113,0.58936,64149.0,64148.0,1.09586881]
[1727773620327,0.58936,64149.0,64148.0,0.55949771]
[1727773620786,0.58936,64149.0,64148.0,0.32472269]
[1727773621016,0.58936,64149.0,64148.0,0.38206322]
[1727773621266,0.58936,64149.0,64148.0,0.015648]
[1727773621567,0.745247,64149.0,64148.0,0.029648]
[1727773622029,0.745247,64149.0,64148.0,0.015648]
[1727773622486,0.280301,64143.0,64142.0,0.001648]
[1727773622708,0.362801,64143.0,64142.0,0.001648]
[1727773622928,0.67456,64143.0,64142.0,0.001648]
[1727773623393,0.830461,64143.0,64142.0,0.001648]
[1727773624273,0.830461,64143.0,64142.0,0.002648]
[1727773625124,0.67456,64143.0,64142.0,0.002648]
[1727773625393,0.59206,64143.0,64142.0,0.002648]
[1727773625637,0.59206,64143.0,64142.0,0.158552]
[1727773626080,0.46766,64143.0,64142.0,0.4544486]
[1727773626322,0.46766,64143.0,64142.0,0.4534486]
[1727773626577,0.46766,64143.0,64142.0,0.80706879]
[1727773626841,0.46766,64143.0,64142.0,0.7239064]
[1727773627069,0.46766,64143.0,64142.0,0.7149064]
[1727773627276,0.46766,64143.0,64142.0,0.7239064]
[1727773627694,0.46766,64143.0,64142.0,0.7199064]
[1727773628410,0.46766,64143.0,64142.0,0.7461664]
[1727773628903,0.46766,64143.0,64142.0,0.7581664]
[1727773629162,0.46766,64143.0,64142.0,0.7461664]
[1727773629411,0.46766,64143.0,64142.0,0.89990998]
[1727773629662,0.46866,64143.0,64142.0,0.89690998]
[1727773629917,0.46866,64143.0,64142.0,0.91090998]
[1727773630173,0.46766,64143.0,64142.0,0.89990998]
[1727773630356,0.46866,64143.0,64142.0,0.91242099]
[1727773631027,0.46866,64143.0,64142.0,0.88116099]
[1727773631241,0.46866,64143.0,64142.0,0.91242099]
[1727773631466,0.46866,64143.0,64142.0,0.88116099]
[1727773632128,0.46866,64143.0,64142.0,0.91242099]
[1727773633260,0.43536765,64143.0,64142.0,1.30059475]
[1727773633476,0.41543907,64143.0,64142.0,1.30059475]
[1727773633688,0.41543907,64143.0,64142.0,1.50666006]
[1727773633904,0.41543907,64143.0,64142.0,1.30059475]
[1727773634557,0.18862352,64143.0,64142.0,0.88816353]
[1727773634765,0.0497443,64155.0,64152.0,0.005]
[1727773634978,0.0497443,64155.0,64152.0,0.91520643]
[1727773635190,0.001224,64159.0,64152.0,0.91320643]
[1727773636479,0.001224,64159.0,64152.0,0.92720643]
[1727773636702,0.001224,64159.0,64152.0,0.94120643]
[1727773637130,0.001224,64159.0,64152.0,0.94620643]
[1727773638210,0.001224,64159.0,64152.0,0.95120643]
[1727773638435,0.001224,64159.0,64152.0,0.95320643]
[1727773640037,0.001224,64159.0,64152.0,0.95330598]
[1727773640681,0.001224,64159.0,64152.0,0.95309572]
[1727773641718,0.001224,64159.0,64158.0,0.260865]
[1727773641970,0.001224,64159.0,64158.0,1.02931306]
[1727773642470,0.001224,64159.0,64158.0,0.91808172]
[1727773642678,0.001224,64159.0,64158.0,0.92308172]
[1727773643149,0.001224,64159.0,64158.0,0.93108172]
[1727773643362,0.001224,64159.0,64158.0,0.97634172]
[1727773643573,0.001224,64159.0,64158.0,0.96834172]
[1727773643991,0.001224,64159.0,64158.0,0.98234172]
[1727773644205,0.001224,64159.0,64158.0,0.97234172]
[1727773644451,0.001224,64159.0,64158.0,1.07453981]
[1727773644656,0.001224,64159.0,64158.0,0.66514112]
[1727773644863,0.001224,64159.0,64158.0,0.97203429]
[1727773645072,0.001224,64159.0,64158.0,1.03763429]
[1727773645288,0.001224,64159.0,64158.0,1.05663429]
[1727773645495,0.049416,64171.0,64165.0,0.43540632]
[1727773645727,0.000924,64173.0,64165.0,1.00090772]
[1727773646816,0.000924,64173.0,64165.0,0.89875729]
[1727773647059,0.000924,64173.0,64165.0,0.91275729]
[1727773647275,0.000924,64173.0,64165.0,0.912228]
[1727773648482,0.000924,64173.0,64165.0,0.91219689]
[1727773649104,0.1217,64168.0,64165.0,0.91219689]
[1727773649546,0.1217,64168.0,64165.0,1.00508288]
[1727773649751,0.1217,64168.0,64167.0,0.155843]
[1727773649974,0.1217,64168.0,64167.0,0.7742141]
[1727773650928,0.1217,64168.0,64167.0,0.8506591]
[1727773651589,0.1217,64168.0,64167.0,0.79499525]
[1727773652680,0.1217,64168.0,64167.0,0.76699525]
[1727773653110,0.1217,64168.0,64167.0,0.78099525]
[1727773653382,0.1217,64168.0,64167.0,0.79499525]
[1727773653605,0.1217,64168.0,64167.0,0.85063705]
[1727773653814,0.1217,64168.0,64167.0,0.86463705]
[1727773654750,0.000824,64173.0,64172.0,0.255831]
[1727773654986,0.077224,64173.0,64172.0,0.255831]
[1727773655875,0.077224,64173.0,64172.0,0.269831]
[1727773656102,0.077224,64173.0,64172.0,0.282831]
[1727773656304,0.000824,64173.0,64172.0,0.282831]
[1727773656518,0.000824,64173.0,64172.0,0.46238932]
[1727773657449,0.000824,64173.0,64172.0,0.50880552]
[1727773658145,0.000824,64173.0,64172.0,0.49480552]
[1727773658693,0.000824,64173.0,64172.0,0.50880552]
[1727773658899,0.000824,64173.0,64172.0,0.49580552]
[1727773659131,0.000824,64173.0,64172.0,0.50980552]
[1727773660314,0.000824,64173.0,64172.0,0.44938932]
[1727773660539,0.000824,64173.0,64172.0,0.43538932]
[1727773660758,0.000824,64173.0,64172.0,0.44938932]
[1727773661922,0.000824,64173.0,64172.0,0.46338932]
[1727773662141,0.000824,64173.0,64172.0,0.43538932]
[1727773662346,0.000824,64173.0,64172.0,0.46338932]
[1727773664735,0.1155,64175.0,64174.0,0.155826]
[1727773664971,0.1155,64175.0,64174.0,0.255826]
[1727773665214,0.05,64177.0,64176.0,0.255821]
[1727773665415,0.05,64177.0,64176.0,0.43537932]
[1727773666670,0.05,64177.0,64176.0,0.46337932]
[1727773668559,0.050824,64177.0,64176.0,0.46337932]
[1727773668760,0.050824,64177.0,64176.0,0.283821]
[1727773669819,0.050824,64177.0,64176.0,0.028]
[1727773670025,0.257824,64177.0,64176.0,0.283821]
[1727773671328,0.177624,64177.0,64176.0,0.283821]
[1727773672816,0.050824,64177.0,64176.0,0.83313568]
[1727773673025,0.050824,64177.0,64176.0,0.82813568]
[1727773673227,0.050824,64177.0,64176.0,0.92099203]
[1727773673883,0.050824,64177.0,64176.0,0.92599203]
[1727773674298,0.050824,64177.0,64176.0,0.46337932]
[1727773674499,0.050824,64177.0,64176.0,0.75267137]
[1727773675344,0.050824,64177.0,64176.0,0.8688686]
[1727773676241,0.050824,64177.0,64176.0,0.75267137]
[1727773676456,0.050824,64177.0,64176.0,0.8688686]
[1727773677324,0.050824,64177.0,64176.0,0.68931028]
[1727773677542,0.050824,64177.0,64176.0,0.57311305]
[1727773680765,0.050824,64177.0,64176.0,0.56519288]
[1727773680969,0.050824,64177.0,64176.0,0.61601688]
[1727773681405,0.0004,64179.0,64178.0,0.155816]
[1727773681618,0.0004,64179.0,64178.0,0.70156585]
[1727773682522,0.0004,64179.0,64178.0,0.71356585]
[1727773682764,0.0004,64179.0,64178.0,0.72656585]
[1727773683196,0.0004,64179.0,64178.0,0.71456585]
[1727773683613,0.0004,64179.0,64178.0,0.70156585]
[1727773683837,0.0004,64179.0,64178.0,0.71228341]
[1727773685042,0.0004,64179.0,64178.0,0.70028341]
[1727773685243,0.0014,64179.0,64178.0,0.71428341]
[1727773685444,0.0014,64179.0,64178.0,0.72828341]
[1727773685835,0.0014,64179.0,64178.0,0.96506134]
[1727773686037,0.0014,64179.0,64178.0,0.80328341]
[1727773686441,0.0014,64179.0,64178.0,1.34607567]
[1727773687015,0.0014,64179.0,64178.0,1.36240822]
[1727773687862,0.0014,64179.0,64178.0,1.36270603]
[1727773690080,0.0014,64179.0,64178.0,1.22311701]
[1727773692598,0.000824,64180.0,64178.0,1.27341293]
[1727773692824,0.000824,64180.0,64179.0,1.12011501]
[1727773695393,0.000824,64180.0,64179.0,1.13311501]
[1727773695619,0.000824,64180.0,64179.0,1.14611501]
[1727773695831,0.000824,64180.0,64179.0,1.48599294]
[1727773696069,0.000824,64180.0,64179.0,1.24921501]
[1727773696544,0.000924,64191.0,64190.0,0.155787]
[1727773696803,0.000924,64191.0,64190.0,0.66014277]
[1727773697699,0.000924,64191.0,64190.0,0.54060993]
[1727773697968,0.000924,64191.0,64190.0,0.54260993]
[1727773698420,0.000924,64191.0,64190.0,0.54460993]
[1727773698659,0.000824,64191.0,64190.0,0.54460993]
[1727773699388,0.000824,64191.0,64190.0,0.78386773]
[1727773699625,0.000824,64191.0,64190.0,0.70106773]
[1727773700071,0.000824,64191.0,64190.0,0.54460993]
[1727773701569,0.000824,64191.0,64190.0,0.66073762]
[1727773701787,0.000824,64191.0,64190.0,0.54460993]
[1727773702220,0.000824,64191.0,64190.0,0.66073762]
[1727773702668,0.000824,64191.0,64190.0,0.66056327]
[1727773702898,0.200924,64191.0,64190.0,0.004]
[1727773703146,0.356709,64191.0,64190.0,0.004]
[1727773703366,0.200924,64191.0,64190.0,0.004]
[1727773703840,0.356709,64191.0,64190.0,0.004]
[1727773704057,0.200924,64191.0,64190.0,0.004]
[1727773704278,0.200924,64191.0,64190.0,0.159787]
[1727773704528,0.200924,64191.0,64190.0,0.004]
[1727773704749,0.122424,64191.0,64190.0,0.159787]
[1727773705679,0.000824,64191.0,64190.0,0.72427831]
[1727773706078,0.000824,64191.0,64190.0,0.8404008]
[1727773706518,0.000824,64191.0,64190.0,0.72427831]
[1727773707603,0.000824,64191.0,64190.0,0.88004885]
[1727773709653,0.000824,64191.0,64190.0,0.54438494]
[1727773709866,0.000824,64191.0,64190.0,0.66049388]
[1727773710499,0.000824,64191.0,64190.0,0.88004885]
[1727773710703,0.000824,64191.0,64190.0,0.99615772]
[1727773711117,0.000824,64191.0,64190.0,0.88004885]
[1727773711346,0.000824,64191.0,64190.0,0.99615569]
[1727773711566,0.1219,64196.0,64195.0,0.255775]
[1727773712739,0.1219,64196.0,64195.0,0.32543799]
[1727773712954,0.1249,64196.0,64195.0,0.32543799]
[1727773713169,0.1249,64196.0,64195.0,0.255775]
[1727773713396,0.1249,64196.0,64195.0,0.1464433]
[1727773713610,0.1249,64196.0,64195.0,0.255775]
[1727773714943,0.1219,64196.0,64195.0,0.255775]
[1727773715152,0.1219,64196.0,64195.0,0.262775]
[1727773715414,0.1239,64196.0,64195.0,0.262775]
[1727773715636,0.1219,64196.0,64195.0,0.262775]
[1727773715859,0.1219,64196.0,64195.0,0.3162183]
[1727773716110,0.0004,64199.0,64195.0,0.1604433]
[1727773716329,0.0004,64199.0,64198.0,0.155768]
[1727773717352,0.0004,64199.0,64198.0,0.20221154]
[1727773717762,0.0004,64199.0,64198.0,0.04644354]
[1727773717969,0.0004,64199.0,64198.0,0.20221154]
[1727773718174,0.0004,64199.0,64198.0,0.20621154]
[1727773718824,0.0004,64199.0,64198.0,0.21021154]
[1727773720249,0.0004,64199.0,64198.0,0.163768]
[1727773720452,0.0004,64199.0,64198.0,0.54089384]
[1727773720661,0.0004,64199.0,64198.0,0.44800985]
[1727773720871,0.0004,64199.0,64198.0,0.56411483]
[1727773722148,0.0004,64199.0,64198.0,0.82057263]
[1727773722381,0.0004,64199.0,64198.0,0.70446765]
[1727773724199,0.0004,64199.0,64198.0,0.88367376]
[1727773725090,0.0004,64199.0,64198.0,0.70446765]
[1727773726300,0.0004,64199.0,64198.0,0.54800985]
[1727773726548,0.0004,64199.0,64198.0,0.66408561]
[1727773726549,0.11713827,64199.0,64198.0,0.66408561]
[1727773727289,0.11713827,64199.0,64198.0,0.66340432]
[1727773728119,0.09713827,64199.0,64198.0,0.66340432]
[1727773728354,0.09713827,64199.0,64198.0,0.547325]
[1727773728828,0.09713827,64199.0,64198.0,0.33343966]
[1727773729041,0.09713827,64199.0,64198.0,0.61753833]
[1727773729259,0.09713827,64199.0,64198.0,0.46177033]
[1727773729472,0.09713827,64199.0,64198.0,0.008]
[1727773730957,0.09713827,64199.0,64198.0,0.009646]
[1727773731220,0.09713827,64199.0,64198.0,0.165414]
[1727773731406,0.09796127,64199.0,64198.0,0.165414]